bitfinex-derivatives/quotes_ETHF0:USTF0_20251024
["timestamp","ask_amount","ask_price","bid_price","bid_amount"]
[1761340052469,0.23096445,3938.4,3938.3,1.9463213]
[1761340052662,0.23096445,3938.4,3938.3,1.4893313]
[1761340052962,0.79666445,3938.4,3938.3,0.3473]
[1761340053157,0.4482,3938.0,3937.9,1.0316313]
[1761340053357,0.7938,3937.8,3937.7,1.1420313]
[1761340053582,0.4482,3937.8,3937.7,0.4577]
[1761340053969,0.4482,3937.8,3937.7,0.805]
[1761340054868,9.1791,3938.1,3938.0,0.9409]
[1761340055069,9.1791,3938.1,3938.0,4.83385461]
[1761340055469,9.1791,3938.1,3938.0,4.1487]
[1761340055769,9.1791,3938.1,3938.0,4.83385461]
[1761340057773,9.7337,3938.1,3938.0,4.83385461]
[1761340060767,9.7337,3938.1,3938.0,3.2078]
[1761340060972,9.7337,3938.1,3938.0,3.5284]
[1761340064778,9.7337,3938.1,3938.0,3.7581]
[1761340066474,9.7337,3938.1,3938.0,3.2078]
[1761340067278,9.7337,3938.1,3938.0,3.5284]
[1761340071585,9.7337,3938.1,3938.0,3.7581]
[1761340072783,9.7337,3938.1,3938.0,0.5503]
[1761340073586,9.1791,3938.1,3938.0,1.36362]
[1761340073885,9.1791,3938.1,3938.0,0.9066]
[1761340074087,9.508,3938.1,3938.0,0.9066]
[1761340074282,9.7337,3938.1,3938.0,0.9066]
[1761340075985,9.7337,3938.1,3938.0,1.36362]
[1761340081388,9.7337,3938.1,3938.0,1.23582]
[1761340083689,9.7337,3938.1,3938.0,0.7788]
[1761340084092,9.7337,3938.1,3938.0,0.5503]
[1761340086583,9.7337,3938.1,3938.0,1.00732]
[1761340090289,9.7337,3938.1,3938.0,1.22322]
[1761340091693,9.7337,3938.1,3938.0,1.35222]
[1761340093194,9.7337,3938.1,3938.0,0.8952]
[1761340093385,9.7337,3938.1,3938.0,0.3206]
[1761340093787,9.7337,3938.1,3938.0,0.77762]
[1761340094189,0.00286445,3938.4,3938.3,1.03629]
[1761340094495,1.81171918,3939.4,3938.9,1.26772]
[1761340094496,8.723,3939.0,3938.9,1.26772]
[1761340095295,9.0625337,3939.0,3938.9,1.26772]
[1761340095489,9.0625337,3939.0,3938.9,1.95232196]
[1761340096196,9.2942337,3939.0,3938.9,1.26772]
[1761340096595,8.9569337,3939.0,3938.9,1.26772]
[1761340096800,8.7252337,3939.0,3938.9,1.26772]
[1761340097400,9.0625337,3939.0,3938.9,1.26772]
[1761340097599,8.7252337,3939.0,3938.9,1.26772]
[1761340100088,0.0022337,3939.0,3938.9,1.26772]
[1761340100596,0.2362337,3939.0,3938.9,1.26772]
[1761340101093,0.0022337,3939.0,3938.9,1.26772]
[1761340102992,0.803,3939.6,3939.5,1.39665]
[1761340103192,0.803,3939.6,3939.5,4.60445]
[1761340104100,0.80585019,3939.6,3939.5,4.60445]
[1761340105998,0.80585019,3939.6,3939.5,4.47545]
[1761340112100,0.80585019,3939.6,3939.5,3.2078]
[1761340113005,0.4657,3939.1,3938.8,0.80193]
[1761340113210,0.1267,3939.5,3938.8,0.80193]
[1761340113211,0.803,3939.0,3938.9,0.5793]
[1761340113516,0.803,3939.0,3938.9,1.03622]
[1761340113713,0.803,3939.0,3938.9,0.5793]
[1761340114004,0.3373,3938.9,3938.8,0.345]
[1761340114210,0.803,3938.9,3938.8,0.345]
[1761340114605,0.803,3938.9,3938.8,0.5793]
[1761340120717,0.803,3938.9,3938.8,1.03623]
[1761340121709,0.803,3938.9,3938.8,0.5793]
[1761340123608,0.803,3938.9,3938.8,0.8096]
[1761340123820,0.803,3938.9,3938.8,0.345]
[1761340124711,0.4657,3938.9,3938.7,3.2078]
[1761340125021,0.78,3938.8,3938.7,3.2078]
[1761340125220,0.78,3938.7,3938.6,0.3317]
[1761340127313,0.3212,3938.6,3938.4,0.3317]
[1761340127513,0.78,3938.5,3938.4,0.3317]
[1761340128017,0.78,3938.5,3938.4,0.5498]
[1761340128721,0.78,3938.5,3938.1,0.5498]
[1761340128722,0.78,3938.2,3938.1,0.5498]
[1761340132513,0.78,3938.2,3938.1,0.7801]
[1761340135328,0.78,3938.2,3938.1,0.5498]
[1761340136639,0.78,3938.2,3938.1,0.3317]
[1761340137131,0.78,3938.2,3937.9,3.2078]
[1761340137132,0.319,3938.1,3937.9,3.5408]
[1761340137339,0.7632,3938.0,3937.9,3.5408]
[1761340137930,9.7991,3938.0,3937.9,3.2078]
[1761340141542,0.7632,3937.7,3937.6,0.2254]
[1761340142042,0.7632,3937.7,3937.6,0.5584]
[1761340142540,0.7632,3937.7,3937.6,0.333]
[1761340143454,0.7632,3937.5,3937.4,0.333]
[1761340143743,0.7632,3937.3,3937.2,0.5584]
[1761340143940,9.7092,3937.3,3937.2,0.5584]
[1761340144339,9.162,3937.3,3937.2,0.7722]
[1761340146344,0.216,3937.3,3937.2,0.7722]
[1761340146843,0.216,3937.3,3937.2,1.22931]
[1761340147246,8.946,3937.4,3937.3,0.7901]
[1761340147540,9.162,3937.4,3937.3,0.7722]
[1761340147738,9.4998,3937.4,3937.3,0.7722]
[1761340148141,9.7286,3937.4,3937.3,0.7722]
[1761340149940,0.7826,3937.4,3937.3,0.7722]
[1761340150146,9.7286,3937.4,3937.3,0.7722]
[1761340153948,9.7286,3937.4,3937.3,0.5584]
[1761340155155,9.7286,3937.4,3937.1,0.00249527]
[1761340155156,0.7896,3937.2,3937.1,0.00249527]
[1761340155553,0.7896,3937.2,3937.1,0.33339527]
[1761340155958,0.7896,3937.2,3937.1,0.55299527]
[1761340158246,0.7896,3937.2,3937.1,0.00249527]
[1761340162854,0.3378,3936.6,3936.3,0.3309]
[1761340163055,0.7896,3936.4,3936.3,0.3309]
[1761340163258,0.7896,3936.4,3936.3,0.5505]
[1761340163863,0.79178125,3936.4,3936.3,0.55359226]
[1761340170959,0.79178125,3936.4,3936.3,0.00309226]
[1761340176355,0.7896,3935.9,3935.8,3.2078]
[1761340176555,9.7376,3935.9,3935.8,3.2078]
[1761340177363,9.3998,3935.9,3935.8,0.00303418]
[1761340177865,9.7476,3935.9,3935.8,0.00303418]
[1761340181677,9.7476,3935.9,3935.8,0.32173418]
[1761340184069,9.7476,3935.9,3935.8,0.00303418]
[1761340184570,9.7476,3935.9,3935.8,0.32173418]
[1761340185477,9.7476,3935.9,3935.8,0.00303418]
[1761340190577,10.65715565,3935.9,3935.8,0.00303418]
[1761340196779,0.7978,3935.4,3935.3,0.3187]
[1761340196985,0.7978,3935.2,3935.1,0.5315]
[1761340197876,0.7978,3935.2,3935.1,0.53356692]
[1761340200889,0.7978,3935.2,3935.1,0.32076692]
[1761340201093,0.7978,3935.2,3935.1,0.00206692]
[1761340201391,1.70725036,3935.2,3935.1,0.00206692]
[1761340203491,1.70725036,3935.2,3933.6,1.370804]
[1761340203492,0.1248,3935.0,3933.6,1.370804]
[1761340203696,3.2078,3933.7,3931.0,7.71041528]
[1761340203994,3.2078,3933.7,3932.5,9.99e-06]
[1761340203995,0.45764,3932.7,3932.5,9.99e-06]
[1761340204180,0.45764,3932.7,3931.5,0.5979]
[1761340204181,0.45777,3931.6,3931.5,0.5979]
[1761340204385,10.49117698,3931.6,3931.5,0.60014648]
[1761340204893,11.85145155,3931.6,3931.5,0.60014648]
[1761340205194,10.49117698,3931.6,3931.5,0.60014648]
[1761340205490,13.69897698,3931.6,3931.5,0.60014648]
[1761340205790,13.69897698,3931.6,3931.5,0.95054648]
[1761340206189,13.70697698,3931.6,3931.5,0.95054648]
[1761340206684,14.60962916,3931.6,3931.5,0.95054648]
[1761340206882,14.60962916,3931.6,3931.5,0.3833726]
[1761340207089,3.91320698,3931.6,3931.5,0.5979]
[1761340207287,0.45782,3931.1,3931.0,0.1376]
[1761340207489,13.70949472,3931.1,3931.0,0.5979]
[1761340207995,13.70949472,3931.1,3931.0,0.59973332]
[1761340208194,15.51250853,3931.1,3931.0,0.59973332]
[1761340208490,15.05468853,3931.1,3931.0,0.59973332]
[1761340208690,3.91067472,3931.1,3931.0,0.59973332]
[1761340208892,3.91067472,3931.1,3931.0,5.59973332]
[1761340209091,0.70287472,3931.1,3931.0,6.15353332]
[1761340209784,0.70287472,3931.1,3931.0,1.15353332]
[1761340209987,0.70287472,3931.1,3931.0,1.42203332]
[1761340210187,2.05169774,3931.1,3931.0,1.42203332]
[1761340210387,0.70287472,3931.1,3931.0,1.42203332]
[1761340211090,2.05169774,3931.1,3931.0,1.42203332]
[1761340213694,10.03787472,3931.1,3931.0,1.42203332]
[1761340213893,11.38669774,3931.1,3931.0,1.42203332]
[1761340214096,10.03787472,3931.1,3931.0,1.42203332]
[1761340214396,13.24567472,3931.1,3931.0,1.42203332]
[1761340215796,0.45787,3930.6,3930.5,0.1376]
[1761340215994,13.68854472,3930.6,3930.5,1e-05]
[1761340216195,0.45793,3930.1,3930.0,0.5127]
[1761340216391,15.48108377,3930.1,3930.0,0.1376]
[1761340216688,13.68860472,3930.1,3930.0,0.1376]
[1761340216890,13.68860472,3930.1,3930.0,0.13944966]
[1761340217092,13.68860472,3930.1,3930.0,0.51454966]
[1761340217901,13.68860472,3930.1,3930.0,0.69324966]
[1761340218999,0.45799,3929.6,3929.5,0.8664]
[1761340219195,10.47886472,3929.6,3929.5,0.32438]
[1761340219398,0.45805,3929.1,3929.0,0.5671]
[1761340219598,12.26423716,3929.1,3929.0,0.9422]
[1761340219899,12.26423716,3929.1,3929.0,0.94440455]
[1761340220201,10.47392472,3929.1,3929.0,0.59070455]
[1761340220402,12.26357973,3929.1,3929.0,0.59070455]
[1761340220796,12.26358079,3929.1,3929.0,0.94440455]
[1761340220995,12.26358079,3929.1,3929.0,1.49820455]
[1761340221201,2.49230245,3929.1,3929.0,1.49820455]
[1761340221503,17.30967557,3930.7,3929.0,1.49820455]
[1761340221504,0.2258,3930.5,3929.4,3.2078]
[1761340221800,0.2258,3930.5,3930.4,3.2078]
[1761340223099,0.2258,3930.5,3930.4,8.2078]
[1761340223602,0.7697,3930.5,3930.4,8.2078]
[1761340224797,0.2258,3931.0,3930.8,0.45784]
[1761340225100,0.2258,3931.0,3930.9,3.2078]
[1761340225302,0.2258,3931.0,3930.9,8.2078]
[1761340226603,0.2258,3931.5,3930.9,8.2078]
[1761340226803,0.7697,3931.5,3931.4,3.2078]
[1761340228095,1.1307,3931.5,3931.4,3.2078]
[1761340229810,0.7697,3931.5,3931.4,3.2078]
[1761340230103,0.7697,3931.5,3931.4,8.2078]
[1761340236011,1.1307,3931.5,3931.4,8.2078]
[1761340236206,0.7697,3931.5,3931.4,8.2078]
[1761340236607,1.35643427,3931.5,3931.4,8.2078]
[1761340237008,0.7697,3931.5,3931.4,8.9512698]
[1761340237208,0.7697,3931.5,3931.4,9.4090498]
[1761340237209,0.2258,3931.5,3931.4,9.4090498]
[1761340237715,0.2258,3931.5,3931.4,9.8866498]
[1761340238213,0.22875924,3931.5,3931.4,9.8866498]
[1761340239312,1.21375924,3931.5,3931.4,10.1254498]
[1761340242417,0.98795924,3931.5,3931.4,10.1254498]
[1761340243210,0.98795924,3931.5,3931.4,11.94427155]
[1761340244708,0.98795924,3931.5,3931.4,11.97453137]
[1761340248224,4.57761,3933.0,3932.1,1.1741]
[1761340248225,0.985,3932.2,3932.1,1.1741]
[1761340248415,0.985,3932.2,3932.1,5.1253698]
[1761340248920,0.985,3932.2,3932.1,5.15562962]
[1761340249116,0.98698785,3932.2,3932.1,5.15562962]
[1761340249324,0.98698785,3932.2,3932.1,5.15817651]
[1761340250120,0.98698785,3932.2,3932.1,6.97875063]
[1761340251220,0.98698785,3932.2,3932.1,5.15817651]
[1761340252223,0.45762,3932.8,3932.1,5.15817651]
[1761340252224,1.5046,3932.5,3932.4,2.86146]
[1761340252419,1.5046,3932.5,3932.4,5.43248991]
[1761340252617,3.48849614,3932.5,3932.4,3.6049298]
[1761340252823,3.48849614,3932.5,3932.4,3.63518962]
[1761340253023,3.48849614,3932.5,3932.4,5.46274973]
[1761340253223,3.49129795,3932.5,3932.4,3.63518962]
[1761340254227,4.47629795,3932.5,3932.4,3.63518962]
[1761340254627,4.25049795,3932.5,3932.4,3.63518962]
[1761340257023,4.64379795,3932.5,3932.4,0.77372962]
[1761340257222,4.64379795,3932.5,3932.4,2.14442921]
[1761340257525,4.64379795,3932.5,3932.4,0.77372962]
[1761340257726,4.64379795,3932.5,3932.4,1.68757938]
[1761340258728,9.44932818,3932.5,3932.4,0.57925985]
[1761340260027,18.77332818,3932.5,3932.4,0.57925985]
[1761340261026,1.2924,3932.2,3932.1,2.7817401]
[1761340261222,4.05392637,3932.2,3932.1,2.7817401]
[1761340262729,4.51161637,3932.2,3932.1,2.7817401]
[1761340263522,4.51161637,3932.2,3932.1,3.46712098]
[1761340267034,4.51161637,3932.2,3932.1,2.7817401]
[1761340268138,2.71163,3931.8,3931.7,1.42092052]
[1761340268322,0.9899,3931.3,3931.2,0.68538088]
[1761340268632,0.45783,3931.0,3930.8,0.68538088]
[1761340268830,2.07085,3930.8,3930.7,0.68538088]
[1761340269033,12.01175,3930.8,3930.7,0.68538088]
[1761340269334,12.01175,3930.8,3930.7,0.00238873]
[1761340269539,11.5539,3930.8,3930.7,0.00238873]
[1761340270722,11.5539,3930.8,3930.7,2.30688873]
[1761340271025,11.5539,3930.8,3930.7,0.00238873]
[1761340273036,11.5539,3930.8,3930.7,0.66547257]
[1761340274428,11.5539,3930.8,3930.7,0.00238873]
[1761340276833,14.7617,3930.8,3930.7,0.00238873]
[1761340277632,19.7617,3930.8,3930.7,0.00238873]
[1761340279733,19.7617,3930.8,3930.1,0.322]
[1761340279734,2.2539,3930.2,3930.1,0.322]
[1761340279934,11.5299,3930.2,3930.1,0.322]
[1761340280743,11.5299,3930.2,3930.1,0.32492927]
[1761340283048,14.7377,3930.2,3930.1,0.32492927]
[1761340287647,2.2539,3930.2,3930.1,1.62762927]
[1761340287843,11.5119,3930.2,3930.1,0.32492927]
[1761340288745,2.2539,3930.2,3930.1,0.32492927]
[1761340288951,9.1229,3930.2,3930.1,0.32492927]
[1761340296350,9.1229,3930.2,3930.1,0.98866025]
[1761340297054,9.1229,3930.2,3930.1,0.32492927]
[1761340297455,9.1229,3930.2,3930.1,0.98156111]
[1761340302561,1.613,3930.2,3930.1,3.70499111]
[1761340302756,10.838,3930.2,3930.1,3.24706111]
[1761340303562,11.5007,3930.2,3930.1,3.24706111]
[1761340305463,11.5007,3930.2,3930.1,4.16091087]
[1761340305766,0.9437,3930.1,3930.0,0.68606518]
[1761340305969,1.5839,3929.2,3929.1,3.17934976]
[1761340306167,10.1657,3929.2,3929.1,2.2655]
[1761340306561,10.8059,3929.2,3929.1,2.2655]
[1761340306758,10.80777559,3929.2,3929.1,2.2679428]
[1761340307259,1.58577559,3929.2,3929.1,2.2679428]
[1761340307464,10.80777559,3929.2,3929.1,2.2679428]
[1761340307869,2.24847559,3929.2,3929.1,2.2679428]
[1761340308062,11.46847559,3929.2,3929.1,1.3273428]
[1761340308264,11.46647559,3929.2,3929.1,1.3273428]
[1761340308458,2.24847559,3929.2,3929.1,1.3273428]
[1761340308666,0.94557559,3929.2,3929.1,2.2679428]
[1761340308862,7.04357559,3929.2,3929.1,2.2679428]
[1761340309663,0.00187559,3929.2,3929.1,8.18179256]
[1761340317774,0.00187559,3929.2,3929.1,8.63984256]
[1761340322078,1.5183,3930.0,3929.9,2.195]
[1761340322281,2.4965,3930.0,3929.9,1.2198]
[1761340322574,2.4965,3930.0,3929.9,0.5985]
[1761340322766,2.4965,3930.0,3929.9,1.2198]
[1761340322972,0.91242518,3930.0,3929.9,2.195]
[1761340324786,0.00212518,3930.0,3929.9,2.195]
[1761340324974,0.608,3930.6,3930.5,2.195]
[1761340325479,1.5183,3930.6,3930.5,2.195]
[1761340325881,1.52138153,3930.6,3930.5,2.195]
[1761340326268,0.00308153,3930.6,3930.5,2.4266]
[1761340330483,0.9029,3931.4,3931.3,2.0508]
[1761340330875,1.5203,3931.4,3931.3,2.0508]
[1761340331388,1.52214867,3931.4,3931.3,2.0508]
[1761340338488,1.2372,3931.3,3930.8,4.0669]
[1761340338686,1.5203,3930.5,3930.4,5.71649]
[1761340338891,1.8767,3930.5,3930.4,5.71649]
[1761340339887,0.9029,3930.5,3930.4,5.71649]
[1761340340583,1.5203,3930.5,3930.4,5.71649]
[1761340342991,2.4965,3930.5,3930.4,5.2586]
[1761340344488,1.5203,3930.5,3930.4,5.2586]
[1761340347889,1.8767,3930.5,3930.4,5.2586]
[1761340348486,2.4965,3930.5,3930.4,5.2586]
[1761340348689,2.4965,3930.5,3930.4,4.3995]
[1761340349088,2.4965,3930.5,3930.4,5.2586]
[1761340351492,2.4965,3930.5,3930.4,6.17074051]
[1761340352089,2.4965,3930.5,3930.4,2.96294051]
[1761340352288,2.4965,3930.5,3930.4,6.17074051]
[1761340353491,2.4965,3930.5,3930.4,5.2586]
[1761340364107,2.4965,3930.5,3930.4,2.0508]
[1761340364307,2.4965,3930.5,3930.4,5.2586]
[1761340365507,1.8767,3930.5,3930.4,5.2586]
[1761340365911,0.9029,3930.5,3930.4,6.63009268]
[1761340368410,0.9029,3930.5,3930.4,5.2586]
[1761340369112,1.4157,3930.8,3930.7,1.9112]
[1761340369309,1.9528,3930.8,3930.7,1.9112]
[1761340369608,1.9528,3930.8,3930.7,1.0886]
[1761340370405,1.9528,3930.8,3930.7,2.00460438]
[1761340370611,1.9528,3930.8,3930.7,1.0886]
[1761340371010,1.9528,3930.8,3930.7,2.00460681]
[1761340371311,1.9528,3930.8,3930.7,1.0886]
[1761340371703,1.9528,3930.8,3930.7,2.00464292]
[1761340371904,1.9528,3930.8,3930.7,0.91604292]
[1761340372105,1.9528,3930.8,3930.0,0.8226]
[1761340372106,1.4157,3930.7,3930.5,0.68705504]
[1761340372306,0.8535,3930.3,3930.2,0.68705504]
[1761340372613,11.0548,3930.3,3930.2,0.68705504]
[1761340373310,11.0548,3930.3,3930.0,3.2078]
[1761340373311,10.2013,3930.3,3930.1,0.68705504]
[1761340373513,1.9528,3930.2,3930.1,0.68705504]
[1761340374408,11.0518,3930.2,3930.1,0.68705504]
[1761340375308,10.1983,3930.2,3930.0,0.68705504]
[1761340375515,1.9528,3929.9,3929.8,1.44534292]
[1761340375708,1.9528,3929.9,3929.8,2.82724292]
[1761340375913,11.0518,3929.9,3929.8,2.00464292]
[1761340377416,11.0508,3929.9,3929.8,1.0886]
[1761340380114,1.9528,3929.9,3929.8,1.8068]
[1761340380427,11.0478,3929.9,3929.8,1.0886]
[1761340381516,1.8048,3929.8,3929.7,1.44714292]
[1761340381817,1.8048,3929.8,3929.7,1.93664292]
[1761340383422,1.8048,3929.8,3929.7,5.14444292]
[1761340387022,10.8888,3929.8,3929.7,5.14444292]
[1761340387522,10.8888,3929.8,3929.7,5.80844292]
[1761340387727,10.8888,3929.8,3929.7,5.14444292]
[1761340393330,10.8888,3929.8,3929.7,5.80844292]
[1761340393631,10.8888,3929.8,3929.7,5.14444292]
[1761340395631,10.8888,3929.8,3929.7,5.80844292]
[1761340396434,10.8888,3929.8,3929.7,4.8924]
[1761340397131,10.8888,3929.8,3929.7,4.2284]
[1761340398625,1.8048,3929.8,3929.7,4.8924]
[1761340398830,0.7695,3930.0,3929.9,1.6507]
[1761340399030,0.7695,3930.0,3929.9,2.10865]
[1761340399221,4.224,3930.6,3930.5,0.664]
[1761340399422,4.7337,3930.6,3930.5,4.8585]
[1761340399622,5.9798,3930.6,3930.5,4.1945]
[1761340400223,5.9798,3930.6,3930.5,4.8585]
[1761340400433,5.9798,3930.6,3930.5,5.7733509]
[1761340400730,1.7558,3930.6,3930.5,5.7733509]
[1761340401123,1.7558,3930.6,3930.5,4.8585]
[1761340401324,1.7558,3930.6,3930.5,5.7733509]
[1761340402132,1.7558,3930.6,3930.5,4.8585]
[1761340407733,1.7558,3930.6,3930.5,5.7733509]
[1761340411240,0.7695,3930.8,3930.7,1.6507]
[1761340411431,5.1515,3931.0,3930.9,1.6507]
[1761340411738,0.7695,3931.0,3930.9,1.6507]
[1761340413142,0.7695,3931.1,3931.0,1.6507]
[1761340413438,0.7695,3931.1,3931.0,2.10853]
[1761340419342,0.7695,3931.1,3931.0,2.79299358]
[1761340421339,0.7695,3931.1,3931.0,2.10853]
[1761340422242,0.7695,3931.1,3931.0,5.31633]
[1761340424646,0.6406,3931.3,3931.2,1.34701]
[1761340425147,1.0687,3931.3,3931.2,1.86451]
[1761340427145,0.64244867,3931.4,3931.3,0.5175]
[1761340427347,0.64244867,3931.4,3931.3,1.4067]
[1761340429144,1.07054867,3931.4,3931.3,1.4067]
[1761340430452,0.64244867,3931.4,3931.3,1.4067]
[1761340431853,0.00184867,3931.4,3931.3,1.4067]
[1761340432254,0.64244867,3931.4,3931.3,2.32051979]
[1761340433054,0.00184867,3931.4,3931.3,2.32051979]
[1761340433256,0.00184867,3931.4,3931.3,1.4067]
[1761340437459,0.00184867,3931.4,3931.3,1.4067]
[1761340440256,0.6502,3931.3,3931.2,1.37138796]
[1761340440564,0.6502,3931.3,3931.1,3.788]
[1761340440565,1.4635,3931.2,3931.1,4.70237618]
[1761340440761,1.4635,3931.2,3931.1,0.68582011]
[1761340440960,0.6502,3930.7,3930.6,0.68582011]
[1761340441162,1.4635,3930.7,3930.6,0.68582011]
[1761340441359,1.4635,3930.6,3930.5,0.68582011]
[1761340442255,0.9083,3930.5,3930.4,0.68582011]
[1761340442565,1.7216,3930.5,3930.4,0.68582011]
[1761340443263,1.0714,3930.5,3930.4,0.68551767]
[1761340443765,1.7216,3930.5,3930.4,0.68551767]
[1761340445159,1.7216,3930.5,3930.3,0.68551767]
[1761340445362,1.4635,3930.4,3930.3,0.68551767]
[1761340446357,0.6502,3930.3,3930.2,3.89331767]
[1761340446563,1.4635,3930.3,3930.2,3.89331767]
[1761340446765,1.4635,3930.3,3930.2,0.68551767]
[1761340446958,1.4635,3930.3,3929.8,3.2078]
[1761340446959,1.4635,3929.9,3929.8,0.68551767]
[1761340447158,0.8133,3929.7,3929.6,0.68551767]
[1761340447463,0.6502,3929.6,3929.5,0.68551767]
[1761340447665,1.4589,3929.6,3929.5,0.68551767]
[1761340448361,1.6387,3929.5,3929.4,3.89331767]
[1761340450059,1.6387,3929.5,3929.3,0.68551767]
[1761340450262,0.6012,3929.3,3929.2,0.68551767]
[1761340450465,1.4099,3929.2,3929.1,0.0024428]
[1761340457767,10.4869,3929.2,3929.1,0.0024428]
[1761340462070,0.2288,3928.5,3928.1,3.2078]
[1761340462273,1.4099,3927.9,3927.8,0.02545954]
[1761340463168,1.41201835,3927.9,3927.8,0.02828916]
[1761340463378,10.49001835,3927.9,3927.8,0.79648916]
[1761340463879,1.41201835,3927.9,3927.8,0.79648916]
[1761340465682,1.02431835,3927.9,3927.8,4.38888916]
[1761340465874,1.41201835,3927.9,3927.8,4.00428916]
[1761340466774,1.02431835,3927.9,3927.8,4.38888916]
[1761340468184,0.60331835,3927.9,3927.8,4.38888916]
[1761340468672,0.00211835,3927.9,3927.8,4.38888916]
[1761340468872,0.60331835,3927.9,3927.8,4.38888916]
[1761340470188,1.02431835,3927.9,3927.8,4.38888916]
[1761340470777,1.41201835,3927.9,3927.8,4.00428916]
[1761340478690,1.41201835,3927.9,3927.8,7.79228916]
[1761340480492,1.41201835,3927.9,3927.8,8.476466]
[1761340480894,1.41201835,3927.9,3927.8,7.79228916]
[1761340481398,1.41201835,3927.9,3927.8,8.476466]
[1761340482199,1.41201835,3927.9,3927.8,8.740666]
[1761340483598,1.41201835,3927.9,3927.8,8.476466]
[1761340484292,1.41201835,3927.9,3927.8,7.79228916]
[1761340485998,1.41201835,3927.9,3927.8,7.02408916]
[1761340486499,1.41201835,3927.9,3927.8,7.28828916]
[1761340489393,1.41201835,3927.9,3927.8,8.20266534]
[1761340490601,1.41201835,3927.9,3927.8,4.41466534]
[1761340491197,1.41201835,3927.9,3927.8,3.50028916]
[1761340491393,1.41201835,3927.9,3927.8,4.41466534]
[1761340493706,1.41201835,3927.9,3927.8,3.50028916]
[1761340495006,1.41201835,3927.9,3927.8,3.23608916]
[1761340495708,1.41201835,3927.9,3927.8,3.50028916]
[1761340501710,0.94891835,3927.9,3927.8,3.69048916]
[1761340501915,1.28871835,3927.9,3927.8,3.69048916]
[1761340502822,1.28871835,3927.9,3927.8,4.60486534]
[1761340503021,1.28871835,3927.9,3927.8,3.50028916]
[1761340506225,1.28871835,3927.9,3927.8,3.69048916]
[1761340506623,0.60331835,3927.9,3927.8,3.88068916]
[1761340506816,0.00211835,3927.9,3927.8,5.25207712]
[1761340507017,0.00211835,3927.9,3927.8,3.88068916]
[1761340507018,0.51601835,3927.9,3927.8,3.88068916]
[1761340507318,0.86161835,3927.9,3927.8,3.88068916]
[1761340508323,1.18501835,3927.9,3927.8,3.69048916]
[1761340508628,1.18501835,3927.9,3927.8,0.29248916]
[1761340508830,1.18501835,3927.9,3927.8,0.02828916]
[1761340509622,1.18501835,3927.9,3927.8,0.33828916]
[1761340510624,10.26001835,3927.9,3927.8,0.33828916]
[1761340512329,10.26001835,3927.9,3927.8,1.2543803]
[1761340513028,10.26001835,3927.9,3927.8,0.33828916]
[1761340513231,10.26001835,3927.9,3927.8,1.2543803]
[1761340513431,1.18501835,3927.9,3927.8,1.2543803]
[1761340513617,0.00211835,3927.9,3927.8,0.95149916]
[1761340514828,0.4842,3928.6,3928.5,0.465]
[1761340515048,0.8289,3928.6,3928.5,1.22580674]
[1761340515534,0.8289,3928.6,3928.5,0.31]
[1761340515838,1.15444036,3928.6,3928.5,0.31]
[1761340517029,1.15444036,3928.6,3928.5,0.155]
[1761340517230,1.15444036,3928.6,3928.5,0.84132884]
[1761340520537,1.15444036,3928.6,3928.5,0.155]
[1761340520736,0.67024036,3928.6,3928.4,0.68632884]
[1761340520935,1.3571,3928.5,3928.4,0.68632884]
[1761340521741,1.3571,3928.5,3928.4,0.84132884]
[1761340522832,1.3571,3928.5,3928.4,0.99632884]
[1761340523133,1.0337,3928.5,3928.4,3.6728]
[1761340523333,1.0337,3928.5,3928.4,4.35837654]
[1761340523633,0.00214036,3928.6,3928.5,0.76813]
[1761340523833,0.00214036,3928.6,3928.5,0.92313]
[1761340524027,0.00214036,3928.6,3928.5,2.29684012]
[1761340524234,0.4842,3929.1,3929.0,0.465]
[1761340524432,0.4842,3929.1,3929.0,4.35797215]
[1761340524745,0.4842,3929.4,3929.3,0.465]
[1761340524948,0.4842,3929.4,3929.3,1.15015758]
[1761340525245,0.4874043,3929.4,3929.3,1.15015758]
[1761340525535,0.0032043,3929.4,3929.3,1.15015758]
[1761340525744,0.0032043,3929.4,3929.3,1.37856287]
[1761340526333,0.0032043,3929.4,3929.3,0.465]
[1761340526739,0.0032043,3929.4,3929.3,1.37856287]
[1761340527439,0.0032043,3929.4,3929.3,0.465]
[1761340530143,0.689,3930.0,3929.9,0.465]
[1761340530746,0.4842,3930.0,3929.9,0.465]
[1761340531137,0.4860663,3930.0,3929.9,0.465]
[1761340533740,0.0018663,3930.0,3929.9,0.465]
[1761340534334,0.4860663,3930.0,3929.9,0.465]
[1761340535641,0.6908663,3930.0,3929.9,0.465]
[1761340537349,1.0355663,3930.0,3929.9,0.465]
[1761340537955,0.6908663,3930.0,3929.9,0.465]
[1761340538552,0.6908663,3930.0,3929.9,3.6728]
[1761340538851,0.9972663,3930.0,3929.9,3.6728]
[1761340539351,0.9972663,3930.0,3929.9,3.5178]
[1761340540047,1.2941663,3930.0,3929.9,3.5178]
[1761340541152,0.6908663,3930.0,3929.9,7.3058]
[1761340541351,0.6908663,3930.0,3929.9,7.3623]
[1761340543955,0.0018663,3930.0,3929.9,7.3623]
[1761340544641,0.4552663,3930.0,3929.9,7.3623]
[1761340546059,0.0018663,3930.0,3929.9,7.3623]
[1761340546358,0.0018663,3930.0,3929.9,8.04571228]
[1761340546553,0.0018663,3930.0,3929.9,8.27586287]
[1761340548255,0.0018663,3930.0,3929.9,7.3623]
[1761340549861,0.2048,3931.0,3930.9,0.4545]
[1761340550560,0.2048,3931.0,3930.9,0.6586962]
[1761340550861,0.8081,3931.5,3931.4,0.4545]
[1761340551162,0.8113988,3931.5,3931.4,0.303]
[1761340551849,1.2647988,3931.5,3931.4,0.303]
[1761340553658,1.2647988,3931.5,3931.4,0.76079]
[1761340553857,1.2647988,3931.5,3931.4,0.91229]
[1761340553858,0.9678988,3931.5,3931.4,0.91229]
[1761340554966,0.6614988,3931.5,3931.4,0.91229]
[1761340555159,0.4566988,3931.5,3931.4,0.91229]
[1761340556858,0.6332988,3931.5,3931.4,0.91229]
[1761340559365,0.6332988,3931.5,3931.4,4.12009]